[Event "Titled Tuesday Blitz March 28 Late 2023"]
[White "Svane, Frederik"]
[Black "Cuenca Jimenez, Jose Fernando"]
[WhiteFideId "12923044"]
[BlackFideId "2255570"]
[WhiteElo "2502"]
[BlackElo "2429"]
[Result "1-0"]
[Round "07"]
[TimeControl "180+2"]
[Date "2023.03.28"]
[WhiteClock "0:00:18"]
[BlackClock "0:00:01"]

1. g3 {[%clk 0:03:00]}  d5 {[%clk 0:02:55]} 2. Nf3 {[%clk 0:03:00]}  Nf6 {[%clk 0:02:55]} 3. Bg2 {[%clk 0:03:01]}  e6 {[%clk 0:02:55]} 4. O-O {[%clk 0:03:01]}  Be7 {[%clk 0:02:56]} 5. c4 {[%clk 0:03:01]}  d4 {[%clk 0:02:56]} 6. e3 {[%clk 0:02:58]}  c5 {[%clk 0:02:56]} 7. exd4 {[%clk 0:02:58]}  cxd4 {[%clk 0:02:57]} 8. d3 {[%clk 0:02:58]}  Nc6 {[%clk 0:02:57]} 9. Na3 {[%clk 0:02:49]}  O-O {[%clk 0:02:55]} 10. Nc2 {[%clk 0:02:49]}  Re8 {[%clk 0:02:30]} 11. Re1 {[%clk 0:02:49]}  a5 {[%clk 0:02:28]} 12. a3 {[%clk 0:02:48]}  a4 {[%clk 0:02:25]} 13. Rb1 {[%clk 0:02:48]}  Bc5 {[%clk 0:02:24]} 14. Bf4 {[%clk 0:02:44]}  Nd7 {[%clk 0:02:04]} 15. Bd2 {[%clk 0:02:33]}  Nf6 {[%clk 0:01:31]} 16. Nb4 {[%clk 0:02:28]}  Bd7 {[%clk 0:01:23]} 17. Ne5 {[%clk 0:02:21]}  Nxe5 {[%clk 0:01:11]} 18. Rxe5 {[%clk 0:02:22]}  Qc7 {[%clk 0:01:11]} 19. Re1 {[%clk 0:02:11]}  e5 {[%clk 0:00:58]} 20. Bg5 {[%clk 0:02:09]}  Bxb4 {[%clk 0:00:47]} 21. axb4 {[%clk 0:02:08]}  Qb6 {[%clk 0:00:37]} 22. b5 {[%clk 0:02:05]}  Ra7 {[%clk 0:00:21]} 23. Ra1 {[%clk 0:01:41]}  Bf5 {[%clk 0:00:16]} 24. h3 {[%clk 0:01:09]}  h6 {[%clk 0:00:15]} 25. Qf3 {[%clk 0:01:08]}  Bg6 {[%clk 0:00:04]} 26. Bd2 {[%clk 0:01:08]}  Nd7 {[%clk 0:00:03]} 27. Qd5 {[%clk 0:00:45]}  Nf6 {[%clk 0:00:03]} 28. Qf3 {[%clk 0:00:40]}  Nd7 {[%clk 0:00:03]} 29. Bb4 {[%clk 0:00:25]}  Nc5 {[%clk 0:00:04]} 30. Rad1 {[%clk 0:00:26]}  Nb3 {[%clk 0:00:01]} 31. Qd5 {[%clk 0:00:22]}  Qe6 {[%clk 0:00:02]} 32. Qxe6 {[%clk 0:00:19]}  Rxe6 {[%clk 0:00:03]} 33. Bd5 {[%clk 0:00:19]}  Re8 {[%clk 0:00:03]} 34. c5 {[%clk 0:00:19]}  Rc8 {[%clk 0:00:02]} 35. Rxe5 {[%clk 0:00:16]}  Nxc5 {[%clk 0:00:01]} 36. Bxc5 {[%clk 0:00:17]}  Rxc5 {[%clk 0:00:01]} 37. Bxf7+ {[%clk 0:00:17]}  Bxf7 {[%clk 0:00:01]} 38. Rxc5 {[%clk 0:00:18]} 1-0


[Site "https://www.chess.com"]

[Event "Titled Tuesday Blitz March 28 Late 2023"]
[White "Tari, Aryan"]
[Black "Godzwon, Iwo"]
[WhiteFideId "1510045"]
[BlackFideId "21802483"]
[WhiteElo "2583"]
[BlackElo "2284"]
[Result "1-0"]
[Round "07"]
[TimeControl "180+2"]
[Date "2023.03.28"]
[WhiteClock "0:00:44"]
[BlackClock "0:00:17"]

1. e4 {[%clk 0:02:55]}  c5 {[%clk 0:02:59]} 2. Nf3 {[%clk 0:02:50]}  e6 {[%clk 0:03:00]} 3. Nc3 {[%clk 0:02:43]}  a6 {[%clk 0:02:58]} 4. g3 {[%clk 0:02:41]}  Nc6 {[%clk 0:02:57]} 5. d4 {[%clk 0:02:40]}  cxd4 {[%clk 0:02:58]} 6. Nxd4 {[%clk 0:02:41]}  d6 {[%clk 0:02:56]} 7. Bg2 {[%clk 0:02:41]}  Bd7 {[%clk 0:02:56]} 8. O-O {[%clk 0:02:40]}  Nf6 {[%clk 0:02:57]} 9. Be3 {[%clk 0:02:34]}  Be7 {[%clk 0:02:55]} 10. a4 {[%clk 0:02:33]}  Nxd4 {[%clk 0:02:54]} 11. Bxd4 {[%clk 0:02:33]}  Bc6 {[%clk 0:02:55]} 12. a5 {[%clk 0:02:33]}  O-O {[%clk 0:02:55]} 13. f4 {[%clk 0:02:22]}  e5 {[%clk 0:02:06]} 14. Bb6 {[%clk 0:02:21]}  Qc8 {[%clk 0:02:04]} 15. h3 {[%clk 0:02:12]}  Re8 {[%clk 0:02:01]} 16. Kh2 {[%clk 0:02:10]}  exf4 {[%clk 0:01:52]} 17. Rxf4 {[%clk 0:02:06]}  Nd7 {[%clk 0:01:47]} 18. Bd4 {[%clk 0:02:06]}  Ne5 {[%clk 0:01:45]} 19. Qh5 {[%clk 0:02:06]}  Bf6 {[%clk 0:01:31]} 20. Rxf6 {[%clk 0:02:04]}  gxf6 {[%clk 0:01:30]} 21. Rf1 {[%clk 0:02:05]}  Qe6 {[%clk 0:01:27]} 22. Qh6 {[%clk 0:01:56]}  f5 {[%clk 0:01:20]} 23. Qh4 {[%clk 0:01:29]}  fxe4 {[%clk 0:01:06]} 24. Rf6 {[%clk 0:01:26]}  Qe7 {[%clk 0:00:58]} 25. Nxe4 {[%clk 0:01:16]}  Bxe4 {[%clk 0:00:44]} 26. Bxe4 {[%clk 0:01:16]}  Ng6 {[%clk 0:00:44]} 27. Rxg6+ {[%clk 0:00:46]}  fxg6 {[%clk 0:00:33]} 28. Bd5+ {[%clk 0:00:46]}  Qe6 {[%clk 0:00:17]} 29. Qf6 {[%clk 0:00:44]} 1-0


[Site "https://www.chess.com"]

[Event "Titled Tuesday Blitz March 28 Late 2023"]
[White "Zierk, Steven"]
[Black "Djokic, Mihailo"]
[WhiteFideId "2034255"]
[BlackFideId "976440"]
[WhiteElo "2494"]
[BlackElo "2294"]
[Result "0-1"]
[Round "07"]
[TimeControl "180+2"]
[Date "2023.03.28"]
[WhiteClock "0:02:06"]
[BlackClock "0:01:33"]

1. e4 {[%clk 0:03:00]}  c5 {[%clk 0:03:00]} 2. Nf3 {[%clk 0:03:00]}  d6 {[%clk 0:03:00]} 3. d4 {[%clk 0:03:00]}  cxd4 {[%clk 0:03:00]} 4. Nxd4 {[%clk 0:03:01]}  Nf6 {[%clk 0:03:00]} 5. Nc3 {[%clk 0:03:02]}  g6 {[%clk 0:03:01]} 6. Be3 {[%clk 0:03:01]}  Bg7 {[%clk 0:03:01]} 7. f3 {[%clk 0:03:01]}  O-O {[%clk 0:03:02]} 8. Qd2 {[%clk 0:03:02]}  Nc6 {[%clk 0:03:02]} 9. O-O-O {[%clk 0:03:02]}  Bd7 {[%clk 0:03:03]} 10. Kb1 {[%clk 0:03:02]}  Rc8 {[%clk 0:03:03]} 11. h4 {[%clk 0:03:02]}  Ne5 {[%clk 0:03:04]} 12. h5 {[%clk 0:03:01]}  Nxh5 {[%clk 0:03:04]} 13. g4 {[%clk 0:03:00]}  Ng3 {[%clk 0:03:05]} 14. Rh3 {[%clk 0:02:55]}  Nxf1 {[%clk 0:03:05]} 15. Rxf1 {[%clk 0:02:56]}  Nc4 {[%clk 0:03:05]} 16. Qf2 {[%clk 0:02:54]}  Qb6 {[%clk 0:03:03]} 17. Bc1 {[%clk 0:02:36]}  Bxd4 {[%clk 0:03:00]} 18. Qh4 {[%clk 0:02:35]}  h5 {[%clk 0:02:56]} 19. gxh5 {[%clk 0:02:35]}  Bxh3 {[%clk 0:02:09]} 20. hxg6 {[%clk 0:02:23]}  fxg6 {[%clk 0:01:49]} 21. Nd5 {[%clk 0:02:13]}  Na3+ {[%clk 0:01:34]} 22. Ka1 {[%clk 0:02:12]}  Nxc2+ {[%clk 0:01:34]} 23. Kb1 {[%clk 0:02:13]}  Na3+ {[%clk 0:01:35]} 24. Ka1 {[%clk 0:02:13]}  Bxf1 {[%clk 0:01:34]} 25. Qh6 {[%clk 0:02:06]}  Rxc1+ {[%clk 0:01:32]} 26. Qxc1 {[%clk 0:02:06]}  Qxb2+ {[%clk 0:01:33]} 0-1


[Site "https://www.chess.com"]

[Event "Titled Tuesday Blitz March 28 Late 2023"]
[White "Sai Krishna G V"]
[Black "Moussard, Jules"]
[WhiteFideId "5028280"]
[BlackFideId "642908"]
[WhiteElo "2359"]
[BlackElo "2610"]
[Result "0-1"]
[Round "07"]
[TimeControl "180+2"]
[Date "2023.03.28"]
[WhiteClock "0:00:05"]
[BlackClock "0:00:42"]

1. e4 {[%clk 0:03:00]}  c5 {[%clk 0:03:00]} 2. Nf3 {[%clk 0:03:00]}  e6 {[%clk 0:03:00]} 3. d4 {[%clk 0:03:00]}  cxd4 {[%clk 0:03:01]} 4. Nxd4 {[%clk 0:03:01]}  Nc6 {[%clk 0:03:02]} 5. Nc3 {[%clk 0:03:01]}  Qc7 {[%clk 0:03:02]} 6. Be3 {[%clk 0:03:00]}  a6 {[%clk 0:03:02]} 7. Be2 {[%clk 0:03:00]}  Nf6 {[%clk 0:03:02]} 8. O-O {[%clk 0:03:00]}  d6 {[%clk 0:03:02]} 9. f4 {[%clk 0:02:57]}  Be7 {[%clk 0:03:02]} 10. Qe1 {[%clk 0:02:58]}  O-O {[%clk 0:03:02]} 11. Qg3 {[%clk 0:02:55]}  Nxd4 {[%clk 0:03:02]} 12. Bxd4 {[%clk 0:02:56]}  b5 {[%clk 0:02:59]} 13. a3 {[%clk 0:02:53]}  Bb7 {[%clk 0:02:59]} 14. Bd3 {[%clk 0:02:49]}  Rfd8 {[%clk 0:02:40]} 15. Kh1 {[%clk 0:02:44]}  Bc6 {[%clk 0:02:38]} 16. Rae1 {[%clk 0:02:42]}  Qb7 {[%clk 0:02:36]} 17. Nd1 {[%clk 0:02:34]}  Nh5 {[%clk 0:02:23]} 18. Qh3 {[%clk 0:02:16]}  g6 {[%clk 0:02:21]} 19. f5 {[%clk 0:01:53]}  e5 {[%clk 0:01:56]} 20. Bc3 {[%clk 0:01:52]}  f6 {[%clk 0:01:36]} 21. g4 {[%clk 0:01:27]}  Nf4 {[%clk 0:01:35]} 22. Rxf4 {[%clk 0:01:27]}  exf4 {[%clk 0:01:36]} 23. g5 {[%clk 0:01:24]}  Rf8 {[%clk 0:01:34]} 24. fxg6 {[%clk 0:01:19]}  hxg6 {[%clk 0:01:32]} 25. Qe6+ {[%clk 0:01:18]}  Rf7 {[%clk 0:01:23]} 26. gxf6 {[%clk 0:01:13]}  Bd7 {[%clk 0:01:20]} 27. Qb3 {[%clk 0:01:01]}  Bf8 {[%clk 0:01:16]} 28. Rg1 {[%clk 0:00:55]}  Bf5 {[%clk 0:01:16]} 29. Nf2 {[%clk 0:00:52]}  Re8 {[%clk 0:01:16]} 30. Rg2 {[%clk 0:00:40]}  Be6 {[%clk 0:01:07]} 31. Qb4 {[%clk 0:00:25]}  Rh7 {[%clk 0:00:58]} 32. Rxg6+ {[%clk 0:00:21]}  Kf7 {[%clk 0:00:59]} 33. Rg5 {[%clk 0:00:15]}  Bh6 {[%clk 0:00:54]} 34. Rh5 {[%clk 0:00:14]}  Qc6 {[%clk 0:00:45]} 35. Qd4 {[%clk 0:00:14]}  Rg8 {[%clk 0:00:45]} 36. h4 {[%clk 0:00:10]}  Rg6 {[%clk 0:00:45]} 37. Kh2 {[%clk 0:00:11]}  f3 {[%clk 0:00:45]} 38. Qa7+ {[%clk 0:00:10]}  Qd7 {[%clk 0:00:42]} 39. Qxa6 {[%clk 0:00:10]}  Bf4+ {[%clk 0:00:42]} 40. Kh1 {[%clk 0:00:10]}  Rxh5 {[%clk 0:00:42]} 41. Bxb5 {[%clk 0:00:05]}  Qxb5 {[%clk 0:00:41]} 42. Qa7+ {[%clk 0:00:05]}  Qd7 {[%clk 0:00:42]} 43. Qxd7+ {[%clk 0:00:05]}  Bxd7 {[%clk 0:00:42]} 0-1


[Site "https://www.chess.com"]

[Event "Titled Tuesday Blitz March 28 Late 2023"]
[White "Bartel, Mateusz"]
[Black "Mihajlov, Sebastian"]
[WhiteFideId "1112635"]
[BlackFideId "1512110"]
[WhiteElo "2521"]
[BlackElo "2464"]
[Result "1-0"]
[Round "07"]
[TimeControl "180+2"]
[Date "2023.03.28"]
[WhiteClock "0:00:22"]
[BlackClock "0:00:28"]

1. e4 {[%clk 0:02:56]}  c5 {[%clk 0:03:00]} 2. Nf3 {[%clk 0:02:55]}  Nc6 {[%clk 0:03:00]} 3. b4 {[%clk 0:02:55]}  cxb4 {[%clk 0:02:55]} 4. d4 {[%clk 0:02:54]}  d5 {[%clk 0:02:55]} 5. exd5 {[%clk 0:02:49]}  Qxd5 {[%clk 0:02:56]} 6. c4 {[%clk 0:02:49]}  bxc3 {[%clk 0:02:38]} 7. Nxc3 {[%clk 0:02:45]}  Qd8 {[%clk 0:02:32]} 8. d5 {[%clk 0:02:40]}  Nb8 {[%clk 0:02:28]} 9. Bb5+ {[%clk 0:02:09]}  Bd7 {[%clk 0:02:26]} 10. Rb1 {[%clk 0:02:08]}  Nf6 {[%clk 0:02:13]} 11. O-O {[%clk 0:02:06]}  g6 {[%clk 0:02:06]} 12. Re1 {[%clk 0:02:03]}  Bg7 {[%clk 0:02:06]} 13. Ba3 {[%clk 0:02:02]}  O-O {[%clk 0:01:29]} 14. Bxe7 {[%clk 0:02:00]}  Qc7 {[%clk 0:01:27]} 15. Bxf8 {[%clk 0:01:53]}  Bxf8 {[%clk 0:01:25]} 16. Bxd7 {[%clk 0:01:48]}  Nbxd7 {[%clk 0:01:24]} 17. Ne4 {[%clk 0:01:49]}  b6 {[%clk 0:01:21]} 18. Rc1 {[%clk 0:01:45]}  Qd8 {[%clk 0:01:19]} 19. h3 {[%clk 0:01:10]}  Nc5 {[%clk 0:01:12]} 20. Nxf6+ {[%clk 0:01:07]}  Qxf6 {[%clk 0:01:13]} 21. Qe2 {[%clk 0:01:01]}  Rd8 {[%clk 0:01:12]} 22. Rcd1 {[%clk 0:00:59]}  Bd6 {[%clk 0:01:08]} 23. g3 {[%clk 0:00:58]}  Na4 {[%clk 0:01:02]} 24. Rd3 {[%clk 0:00:55]}  Bb4 {[%clk 0:00:55]} 25. Qe5 {[%clk 0:00:47]}  Kg7 {[%clk 0:00:51]} 26. Qxf6+ {[%clk 0:00:45]}  Kxf6 {[%clk 0:00:52]} 27. Re4 {[%clk 0:00:45]}  Nc5 {[%clk 0:00:49]} 28. Rf4+ {[%clk 0:00:45]}  Kg7 {[%clk 0:00:50]} 29. Re3 {[%clk 0:00:41]}  a5 {[%clk 0:00:48]} 30. Re7 {[%clk 0:00:40]}  Rf8 {[%clk 0:00:47]} 31. Ng5 {[%clk 0:00:37]}  h6 {[%clk 0:00:44]} 32. Rfxf7+ {[%clk 0:00:24]}  Rxf7 {[%clk 0:00:44]} 33. Nxf7 {[%clk 0:00:25]}  Kf6 {[%clk 0:00:39]} 34. Ra7 {[%clk 0:00:26]}  Na4 {[%clk 0:00:35]} 35. d6 {[%clk 0:00:22]}  Nc3 {[%clk 0:00:27]} 36. d7 {[%clk 0:00:21]}  Be7 {[%clk 0:00:28]} 37. d8=Q {[%clk 0:00:21]}  Bxd8 {[%clk 0:00:28]} 38. Nxd8 {[%clk 0:00:22]}  Nxa2 {[%clk 0:00:28]} 39. Ra6 {[%clk 0:00:22]} 1-0


[Site "https://www.chess.com"]

[Event "Titled Tuesday Blitz March 28 Late 2023"]
[White "Smirnov, Pavel"]
[Black "Adan Bermudez, Sergio"]
[WhiteFideId "4123425"]
[BlackFideId "2292726"]
[WhiteElo "2519"]
[BlackElo "2292"]
[Result "1-0"]
[Round "07"]
[TimeControl "180+2"]
[Date "2023.03.28"]
[WhiteClock "0:00:38"]
[BlackClock "0:01:26"]

1. d4 {[%clk 0:03:00]}  d5 {[%clk 0:02:57]} 2. c4 {[%clk 0:03:01]}  e6 {[%clk 0:02:57]} 3. Nf3 {[%clk 0:03:01]}  a6 {[%clk 0:02:56]} 4. c5 {[%clk 0:03:00]}  b6 {[%clk 0:02:45]} 5. cxb6 {[%clk 0:03:01]}  cxb6 {[%clk 0:02:45]} 6. Bf4 {[%clk 0:02:58]}  Bd6 {[%clk 0:02:44]} 7. e3 {[%clk 0:02:57]}  Bxf4 {[%clk 0:02:41]} 8. exf4 {[%clk 0:02:58]}  Nf6 {[%clk 0:02:39]} 9. Nc3 {[%clk 0:02:59]}  O-O {[%clk 0:02:39]} 10. Bd3 {[%clk 0:02:59]}  b5 {[%clk 0:02:38]} 11. O-O {[%clk 0:02:59]}  b4 {[%clk 0:02:36]} 12. Na4 {[%clk 0:02:58]}  a5 {[%clk 0:02:36]} 13. Nc5 {[%clk 0:02:54]}  Ba6 {[%clk 0:02:32]} 14. Nxa6 {[%clk 0:02:53]}  Nxa6 {[%clk 0:02:32]} 15. Ne5 {[%clk 0:02:52]}  Qd6 {[%clk 0:02:30]} 16. Rc1 {[%clk 0:02:50]}  Rfc8 {[%clk 0:02:28]} 17. Qe2 {[%clk 0:02:50]}  Rxc1 {[%clk 0:02:17]} 18. Rxc1 {[%clk 0:02:51]}  Nc7 {[%clk 0:02:06]} 19. g4 {[%clk 0:02:49]}  Nfe8 {[%clk 0:01:58]} 20. g5 {[%clk 0:02:46]}  f6 {[%clk 0:01:50]} 21. Rc6 {[%clk 0:01:53]}  Qd8 {[%clk 0:01:38]} 22. Bxh7+ {[%clk 0:01:13]}  Kxh7 {[%clk 0:01:33]} 23. Qh5+ {[%clk 0:01:12]}  Kg8 {[%clk 0:01:33]} 24. Qf7+ {[%clk 0:00:59]}  Kh7 {[%clk 0:01:26]} 25. g6+ {[%clk 0:00:39]}  Kh6 {[%clk 0:01:26]} 26. Qg8 {[%clk 0:00:38]} 1-0


[Site "https://www.chess.com"]

[Event "Titled Tuesday Blitz March 28 Late 2023"]
[White "Risteski, Emil"]
[Black "Horvath, Dominik"]
[WhiteFideId "15005267"]
[BlackFideId "1642561"]
[WhiteElo "2251"]
[BlackElo "2407"]
[Result "0-1"]
[Round "07"]
[TimeControl "180+2"]
[Date "2023.03.28"]
[WhiteClock "0:00:04"]
[BlackClock "0:00:13"]

1. f4 {[%clk 0:03:00]}  e5 {[%clk 0:02:55]} 2. fxe5 {[%clk 0:02:58]}  d6 {[%clk 0:02:55]} 3. Nf3 {[%clk 0:02:57]}  dxe5 {[%clk 0:02:55]} 4. e4 {[%clk 0:02:56]}  Nc6 {[%clk 0:02:55]} 5. Bb5 {[%clk 0:02:52]}  Bc5 {[%clk 0:02:54]} 6. Bxc6+ {[%clk 0:02:44]}  bxc6 {[%clk 0:02:53]} 7. d3 {[%clk 0:02:42]}  Nf6 {[%clk 0:02:48]} 8. Qe2 {[%clk 0:02:32]}  Qd6 {[%clk 0:02:45]} 9. Nc3 {[%clk 0:02:28]}  Rb8 {[%clk 0:02:42]} 10. Nd1 {[%clk 0:02:03]}  Ba6 {[%clk 0:02:29]} 11. b3 {[%clk 0:01:54]}  O-O {[%clk 0:02:22]} 12. Bb2 {[%clk 0:01:47]}  Rfe8 {[%clk 0:02:22]} 13. Nf2 {[%clk 0:01:34]}  Nh5 {[%clk 0:02:13]} 14. g3 {[%clk 0:01:23]}  Qh6 {[%clk 0:02:04]} 15. O-O {[%clk 0:01:16]}  f6 {[%clk 0:01:50]} 16. Bc1 {[%clk 0:01:02]}  Qg6 {[%clk 0:01:49]} 17. Be3 {[%clk 0:00:55]}  Nf4 {[%clk 0:01:32]} 18. Qd2 {[%clk 0:00:45]}  Bxe3 {[%clk 0:01:10]} 19. Qxe3 {[%clk 0:00:43]}  Ra8 {[%clk 0:01:02]} 20. Kh1 {[%clk 0:00:35]}  Ne6 {[%clk 0:01:00]} 21. Nh4 {[%clk 0:00:33]}  Qh5 {[%clk 0:00:50]} 22. Nf5 {[%clk 0:00:29]}  Bc8 {[%clk 0:00:50]} 23. Nd1 {[%clk 0:00:21]}  Ng5 {[%clk 0:00:45]} 24. Qf2 {[%clk 0:00:16]}  Qg6 {[%clk 0:00:37]} 25. Nde3 {[%clk 0:00:16]}  Nf7 {[%clk 0:00:34]} 26. Nh4 {[%clk 0:00:14]}  Qh5 {[%clk 0:00:34]} 27. Qf3 {[%clk 0:00:14]}  Qg5 {[%clk 0:00:33]} 28. Nhf5 {[%clk 0:00:14]}  Nd6 {[%clk 0:00:32]} 29. h4 {[%clk 0:00:14]}  Qg6 {[%clk 0:00:32]} 30. g4 {[%clk 0:00:14]}  h6 {[%clk 0:00:26]} 31. Rg1 {[%clk 0:00:12]}  Qf7 {[%clk 0:00:23]} 32. g5 {[%clk 0:00:09]}  fxg5 {[%clk 0:00:20]} 33. hxg5 {[%clk 0:00:10]}  Bxf5 {[%clk 0:00:16]} 34. Nxf5 {[%clk 0:00:09]}  Nxf5 {[%clk 0:00:16]} 35. exf5 {[%clk 0:00:05]}  hxg5 {[%clk 0:00:16]} 36. Rxg5 {[%clk 0:00:05]}  Qd5 {[%clk 0:00:14]} 37. Qxd5+ {[%clk 0:00:04]}  cxd5 {[%clk 0:00:15]} 38. f6 {[%clk 0:00:05]}  g6 {[%clk 0:00:13]} 39. Rxg6+ {[%clk 0:00:05]}  Kf7 {[%clk 0:00:13]} 40. Rag1 {[%clk 0:00:06]}  Rh8+ {[%clk 0:00:13]} 41. Kg2 {[%clk 0:00:04]}  Kxg6 {[%clk 0:00:13]} 0-1


[Site "https://www.chess.com"]

[Event "Titled Tuesday Blitz March 28 Late 2023"]
[White "Aradhya, Garg"]
[Black "angelgab3"]
[WhiteFideId "25006746"]
[WhiteElo "2263"]
[BlackElo "2548"]
[Result "1/2-1/2"]
[Round "07"]
[TimeControl "180+2"]
[Date "2023.03.28"]
[WhiteClock "0:00:35"]
[BlackClock "0:00:13"]

1. d4 {[%clk 0:03:00]}  Nf6 {[%clk 0:02:59]} 2. c4 {[%clk 0:03:01]}  e6 {[%clk 0:03:00]} 3. Nf3 {[%clk 0:03:01]}  d5 {[%clk 0:03:00]} 4. Nc3 {[%clk 0:03:01]}  dxc4 {[%clk 0:03:00]} 5. e4 {[%clk 0:03:01]}  b5 {[%clk 0:03:00]} 6. e5 {[%clk 0:03:01]}  Nd5 {[%clk 0:03:01]} 7. Nxb5 {[%clk 0:03:02]}  Nb6 {[%clk 0:03:02]} 8. a4 {[%clk 0:03:01]}  Ba6 {[%clk 0:02:52]} 9. Be2 {[%clk 0:03:00]}  Nc6 {[%clk 0:02:51]} 10. O-O {[%clk 0:03:00]}  Be7 {[%clk 0:02:51]} 11. Be3 {[%clk 0:02:43]}  O-O {[%clk 0:02:47]} 12. Nd2 {[%clk 0:02:36]}  Na5 {[%clk 0:02:46]} 13. Qc2 {[%clk 0:02:30]}  c6 {[%clk 0:02:31]} 14. Na3 {[%clk 0:02:30]}  Nb3 {[%clk 0:02:28]} 15. Rad1 {[%clk 0:02:26]}  Bxa3 {[%clk 0:02:13]} 16. bxa3 {[%clk 0:02:04]}  Nxd4 {[%clk 0:02:13]} 17. Bxd4 {[%clk 0:02:05]}  Qxd4 {[%clk 0:02:14]} 18. Nxc4 {[%clk 0:02:03]}  Qc5 {[%clk 0:02:14]} 19. Rc1 {[%clk 0:02:03]}  Bxc4 {[%clk 0:02:10]} 20. Bxc4 {[%clk 0:02:04]}  Qxe5 {[%clk 0:02:10]} 21. Bd3 {[%clk 0:02:03]}  g6 {[%clk 0:02:00]} 22. Qxc6 {[%clk 0:02:02]}  Rfd8 {[%clk 0:01:48]} 23. Bb5 {[%clk 0:01:52]}  Rac8 {[%clk 0:01:21]} 24. Qb7 {[%clk 0:01:45]}  Rxc1 {[%clk 0:01:09]} 25. Rxc1 {[%clk 0:01:46]}  Qf4 {[%clk 0:01:07]} 26. Rf1 {[%clk 0:01:44]}  Nxa4 {[%clk 0:01:01]} 27. Qxa7 {[%clk 0:01:25]}  Nc3 {[%clk 0:00:49]} 28. Bc6 {[%clk 0:01:24]}  Rd2 {[%clk 0:00:33]} 29. Qc5 {[%clk 0:01:13]}  Rc2 {[%clk 0:00:20]} 30. Qb6 {[%clk 0:00:53]}  Qc4 {[%clk 0:00:18]} 31. Qb8+ {[%clk 0:00:38]}  Kg7 {[%clk 0:00:18]} 32. Qe5+ {[%clk 0:00:39]}  Kg8 {[%clk 0:00:19]} 33. Qb8+ {[%clk 0:00:39]}  Kg7 {[%clk 0:00:16]} 34. Qe5+ {[%clk 0:00:39]}  Kf8 {[%clk 0:00:13]} 35. Qb8+ {[%clk 0:00:35]}  Kg7 {[%clk 0:00:13]} 1/2-1/2


[Site "https://www.chess.com"]

[Event "Titled Tuesday Blitz March 28 Late 2023"]
[White "Sreyas Payyappat"]
[Black "Adewumi, Tanitoluwa"]
[WhiteFideId "46674969"]
[BlackFideId "30966396"]
[WhiteElo "2083"]
[BlackElo "2753"]
[Result "1-0"]
[Round "07"]
[TimeControl "180+2"]
[Date "2023.03.28"]
[WhiteClock "0:00:19"]
[BlackClock "0:00:02"]

1. e4 {[%clk 0:02:56]}  c5 {[%clk 0:02:56]} 2. Nf3 {[%clk 0:02:56]}  e6 {[%clk 0:02:55]} 3. d4 {[%clk 0:02:56]}  cxd4 {[%clk 0:02:56]} 4. Nxd4 {[%clk 0:02:57]}  Nc6 {[%clk 0:02:56]} 5. Nc3 {[%clk 0:02:57]}  Qc7 {[%clk 0:02:56]} 6. Be3 {[%clk 0:02:56]}  a6 {[%clk 0:02:56]} 7. f4 {[%clk 0:02:54]}  Bb4 {[%clk 0:02:53]} 8. Be2 {[%clk 0:02:52]}  Nf6 {[%clk 0:02:53]} 9. Bf3 {[%clk 0:02:51]}  Na5 {[%clk 0:02:08]} 10. O-O {[%clk 0:02:34]}  Nc4 {[%clk 0:02:07]} 11. Qe1 {[%clk 0:02:16]}  Nxb2 {[%clk 0:01:27]} 12. Ncb5 {[%clk 0:02:13]}  Qc4 {[%clk 0:01:19]} 13. c3 {[%clk 0:01:32]}  axb5 {[%clk 0:00:32]} 14. cxb4 {[%clk 0:01:30]}  O-O {[%clk 0:00:30]} 15. Qd2 {[%clk 0:01:15]}  Rxa2 {[%clk 0:00:20]} 16. Be2 {[%clk 0:00:29]}  Rxa1 {[%clk 0:00:10]} 17. Bxc4 {[%clk 0:00:28]}  Nxc4 {[%clk 0:00:10]} 18. Qe2 {[%clk 0:00:22]}  Rxf1+ {[%clk 0:00:09]} 19. Kxf1 {[%clk 0:00:20]}  Nxe4 {[%clk 0:00:08]} 20. Nxb5 {[%clk 0:00:20]}  d5 {[%clk 0:00:09]} 21. Bd4 {[%clk 0:00:16]}  Bd7 {[%clk 0:00:08]} 22. Nc3 {[%clk 0:00:16]}  Rc8 {[%clk 0:00:02]} 23. Nxe4 {[%clk 0:00:16]}  dxe4 {[%clk 0:00:03]} 24. Bc5 {[%clk 0:00:16]}  b6 {[%clk 0:00:03]} 25. Qxc4 {[%clk 0:00:15]}  bxc5 {[%clk 0:00:03]} 26. bxc5 {[%clk 0:00:16]}  g6 {[%clk 0:00:02]} 27. Kf2 {[%clk 0:00:16]}  Bc6 {[%clk 0:00:02]} 28. Ke3 {[%clk 0:00:17]}  Bd5 {[%clk 0:00:02]} 29. Qb5 {[%clk 0:00:17]}  Kg7 {[%clk 0:00:02]} 30. Qb6 {[%clk 0:00:17]}  Rc6 {[%clk 0:00:03]} 31. Qb2+ {[%clk 0:00:17]}  f6 {[%clk 0:00:03]} 32. Kd4 {[%clk 0:00:18]}  Kf7 {[%clk 0:00:03]} 33. Qb7+ {[%clk 0:00:18]}  Kg8 {[%clk 0:00:03]} 34. Qb8+ {[%clk 0:00:19]}  Kg7 {[%clk 0:00:03]} 35. Qd8 {[%clk 0:00:19]}  Ra6 {[%clk 0:00:02]} 36. Qe7+ {[%clk 0:00:19]}  Kh6 {[%clk 0:00:02]} 37. Qf8+ {[%clk 0:00:19]}  Kh5 {[%clk 0:00:03]} 38. Qxf6 {[%clk 0:00:20]}  h6 {[%clk 0:00:02]} 39. h3 {[%clk 0:00:18]}  e5+ {[%clk 0:00:02]} 40. Qxe5+ {[%clk 0:00:19]}  g5 {[%clk 0:00:02]} 41. Qxd5 {[%clk 0:00:19]}  e3 {[%clk 0:00:02]} 42. Qf3+ {[%clk 0:00:19]}  g4 {[%clk 0:00:02]} 43. Qxg4# {[%clk 0:00:19]} 1-0


[Site "https://www.chess.com"]